bitfinex-derivatives/quotes_ETHF0:USTF0_20241104
["timestamp","ask_amount","ask_price","bid_price","bid_amount"]
[1730760493139,2.18841244,2398.5,2398.3,3.274633]
[1730760493328,2.60556244,2398.5,2398.4,4.02055282]
[1730760493529,2.60556244,2398.5,2398.4,4.65655282]
[1730760494329,2.60556244,2398.5,2398.4,4.64638796]
[1730760495029,2.18841244,2398.5,2398.4,4.64638796]
[1730760495235,43.40555244,2398.6,2398.5,0.41715]
[1730760495435,20.8,2398.6,2398.5,1.91448559]
[1730760495833,20.8,2398.6,2398.5,3.06597463]
[1730760496232,20.8,2398.6,2398.5,1.91448559]
[1730760496434,20.8,2398.6,2398.5,7.2339587]
[1730760496630,0.51409,2398.9,2398.8,0.4171]
[1730760496834,0.41709,2398.9,2398.8,2.49743797]
[1730760497035,41.21709,2398.9,2398.8,2.49743797]
[1730760497535,2.18841244,2399.1,2398.8,2.08033797]
[1730760497728,2.18841244,2399.1,2399.0,1.92128548]
[1730760497929,0.41705,2399.2,2399.0,2.5035547]
[1730760498241,0.41703,2399.2,2399.1,0.58226922]
[1730760498540,0.41705,2399.1,2399.0,1.92128548]
[1730760498730,0.41705,2399.1,2399.0,2.50308082]
[1730760499338,0.41705,2399.1,2399.0,1.92128548]
[1730760499531,0.41705,2399.1,2399.0,1.50422548]
[1730760502142,0.41704,2399.2,2399.0,1.92128548]
[1730760502339,0.41704,2399.2,2399.1,1.50422548]
[1730760507447,1.07814,2399.2,2399.1,1.50422548]
[1730760509037,0.41704,2399.2,2399.1,1.50422548]
[1730760511545,1.08534,2399.2,2399.1,1.50422548]
[1730760513751,41.88534,2399.2,2399.1,1.50422548]
[1730760515556,41.21704,2399.2,2399.1,1.50422548]
[1730760515747,0.41704,2399.2,2399.1,1.50422548]
[1730760516252,41.21704,2399.2,2399.1,1.50422548]
[1730760519752,0.41704,2399.2,2399.1,1.50422548]
[1730760520353,41.21704,2399.2,2399.1,1.50422548]
[1730760520942,0.41704,2399.2,2399.1,1.50422548]
[1730760521454,41.21704,2399.2,2399.1,1.50422548]
[1730760522256,0.41704,2399.2,2399.1,1.50422548]
[1730760524451,0.41703,2399.2,2399.1,1.50422548]
[1730760524849,3.2078,2399.6,2399.1,3.00845096]
[1730760525151,0.718,2399.7,2399.6,0.41696]
[1730760525364,0.0053386,2399.9,2399.6,0.41696]
[1730760525652,0.41693,2399.8,2399.7,0.6399]
[1730760526245,0.0053386,2399.9,2399.7,2.14412548]
[1730760526547,0.0053386,2399.9,2399.7,2.56106548]
[1730760526548,0.4222586,2399.9,2399.7,2.56106548]
[1730760526748,0.41693,2399.8,2399.7,2.14412548]
[1730760530649,0.41693,2399.8,2399.7,2.56106548]
[1730760531049,0.0053386,2399.9,2399.7,2.56106548]
[1730760531250,0.4222586,2399.9,2399.7,2.56106548]
[1730760531452,0.41693,2399.8,2399.7,2.56106548]
[1730760532054,0.4222486,2399.9,2399.8,0.41693]
[1730760532458,0.4222486,2399.9,2399.7,2.56105548]
[1730760535158,0.4222486,2399.9,2399.7,2.14412548]
[1730760535159,0.0053386,2399.9,2399.7,2.14412548]
[1730760535459,2.17615794,2401.6,2400.1,3.2078]
[1730760535654,0.65,2402.2,2401.5,6.21625096]
[1730760535962,0.65,2402.2,2402.1,1.50422548]
[1730760536474,40.8,2402.2,2402.1,1.92075548]
[1730760536947,40.8,2402.2,2402.1,6.08395548]
[1730760537152,40.8,2402.2,2402.1,9.29175548]
[1730760537454,40.8,2402.2,2402.1,11.03704986]
[1730760537648,40.8,2402.2,2402.1,12.31604986]
[1730760537846,40.8,2402.2,2402.1,8.15284986]
[1730760538049,40.8,2402.2,2402.1,6.45731986]
[1730760538256,44.9632,2402.2,2402.1,6.45731986]
[1730760539045,44.9632,2402.2,2402.1,3.24951986]
[1730760539046,45.37971,2402.2,2402.1,3.24951986]
[1730760539653,4.57971,2402.2,2402.1,3.24951986]
[1730760540663,0.41653,2402.1,2401.9,3.24951986]
[1730760541160,3.2078,2402.5,2401.9,3.24951986]
[1730760541758,0.41651,2402.2,2401.9,3.24951986]
[1730760541964,0.41654,2402.1,2401.9,3.24951986]
[1730760542461,4.57974,2402.0,2401.9,3.24951986]
[1730760542661,0.41654,2402.0,2401.9,3.24951986]
[1730760542863,4.57974,2402.0,2401.9,3.24951986]
[1730760543060,45.37974,2402.0,2401.9,3.24951986]
[1730760543565,44.9632,2402.0,2401.7,3.24951986]
[1730760543769,0.41658,2401.8,2401.7,3.24951986]
[1730760545966,40.8,2401.8,2401.7,3.24951986]
[1730760546167,41.21658,2401.8,2401.7,3.24951986]
[1730760547167,40.8,2401.8,2401.5,3.2078]
[1730760547470,0.41661,2401.6,2401.5,3.2078]
[1730760548064,40.8,2401.8,2401.3,1.00490057]
[1730760548270,40.8,2401.8,2401.3,0.6107]
[1730760548271,0.41665,2401.4,2401.3,0.6107]
[1730760549265,41.21665,2401.4,2401.3,0.6107]
[1730760549771,45.38065,2401.4,2401.3,0.6107]
[1730760550269,41.21665,2401.4,2401.3,0.6107]
[1730760552062,40.8,2401.4,2401.2,3.2078]
[1730760552263,0.41667,2401.3,2401.2,3.2078]
[1730760553265,4.58147,2401.3,2401.2,3.2078]
[1730760553667,4.1648,2401.3,2401.1,3.24951986]
[1730760553865,0.6478,2401.3,2400.9,0.6599]
[1730760554068,0.41672,2401.0,2400.9,0.6599]
[1730760556768,1.258,2401.3,2400.6,1.2762]
[1730760556769,0.41676,2400.8,2400.6,0.6413]
[1730760556965,3.88252,2401.3,2400.7,0.6127]
[1730760557377,0.41674,2400.9,2400.7,0.6127]
[1730760557674,40.8,2400.8,2400.7,0.6127]
[1730760557875,40.8,2400.8,2400.7,0.90347]
[1730760558077,40.8,2400.8,2400.7,0.4867]
[1730760558277,41.21675,2400.8,2400.7,0.4867]
[1730760558675,40.8,2400.8,2400.7,0.4867]
[1730760558977,41.21675,2400.8,2400.7,0.4867]
[1730760559373,40.8,2400.8,2400.7,0.4867]
[1730760561369,41.21675,2400.8,2400.7,0.4867]
[1730760562075,44.46626986,2400.8,2400.7,0.4867]
[1730760562681,44.04951986,2400.8,2400.7,0.4867]
[1730760563275,44.46626986,2400.8,2400.7,0.4867]
[1730760565580,1.65262,2401.2,2400.7,0.4867]
[1730760565581,0.41669,2401.2,2400.9,0.41673]
[1730760565778,1.04154,2401.6,2401.0,0.6568]
[1730760565979,0.41669,2401.2,2401.1,0.6484]
[1730760566274,0.41669,2401.2,2401.1,5.2512982]
[1730760566275,41.21669,2401.2,2401.1,5.2512982]
[1730760566477,41.21669,2401.2,2401.1,9.4160982]
[1730760568081,40.8,2401.2,2401.1,9.4160982]
[1730760568578,41.21668,2401.2,2401.1,9.4160982]
[1730760569283,40.8,2401.2,2401.1,9.4160982]
[1730760569785,40.8,2401.2,2401.1,9.8327982]
[1730760572583,40.8,2401.2,2401.1,0.57204803]
[1730760572780,40.8,2401.2,2401.0,0.41671]
[1730760573486,40.8,2401.2,2401.1,0.4167]
[1730760574390,40.8,2401.2,2401.1,0.98931544]
[1730760574584,40.8,2401.2,2401.1,4.19711544]
[1730760575381,40.8,2401.2,2401.1,3.78041544]
[1730760575692,0.41668,2401.2,2401.1,3.78041544]
[1730760576283,3.24951986,2401.6,2401.1,4.19444526]
[1730760576488,0.4167,2401.4,2401.1,3.62453]
[1730760576695,40.8,2401.2,2401.1,3.62453]
[1730760576991,40.8,2401.2,2401.1,4.19442843]
[1730760577289,40.8,2401.2,2401.1,4.19435991]
[1730760577989,40.8,2401.2,2401.1,3.77762991]
[1730760578387,40.8,2401.2,2401.1,4.19436991]
[1730760579292,40.8,2401.2,2401.1,4.69072686]
[1730760579596,41.21672,2401.2,2401.1,0.56982991]
[1730760579786,41.4491,2401.2,2401.1,0.56982991]
[1730760579987,41.4491,2401.2,2401.0,0.41675]
[1730760580391,41.4491,2401.2,2401.1,0.98787363]
[1730760581300,41.4491,2401.2,2401.1,1.89742034]
[1730760581301,40.8,2401.2,2401.1,1.89742034]
[1730760581495,41.4004,2401.2,2401.1,0.98787363]
[1730760582091,41.4004,2401.2,2401.1,1.89743823]
[1730760582385,41.4004,2401.2,2401.1,0.98787363]
[1730760582790,41.4004,2401.2,2401.1,1.8973787]
[1730760584497,41.4004,2401.2,2401.1,0.41674]
[1730760584890,41.4004,2401.2,2401.1,2.46540769]
[1730760585090,41.4004,2401.2,2401.1,1.89633853]
[1730760587403,41.4004,2401.2,2401.1,0.98581636]
[1730760587700,41.4004,2401.2,2401.1,1.89104332]
[1730760588098,41.4004,2401.2,2401.1,0.98581636]
[1730760588299,41.4004,2401.2,2401.1,0.41674]
[1730760588609,44.6082,2401.2,2401.1,0.56587976]
[1730760588903,41.81712,2401.2,2401.1,0.56587976]
[1730760589093,41.4004,2401.2,2401.1,0.56587976]
[1730760589294,41.81712,2401.2,2401.1,0.56587976]
[1730760590208,41.4004,2401.2,2401.1,0.98261976]
[1730760590702,41.4004,2401.2,2401.1,0.56587976]
[1730760590904,43.31767395,2401.2,2401.1,0.56587976]
[1730760592005,43.31767395,2401.2,2401.1,0.57110312]
[1730760594097,43.31767395,2401.2,2401.1,1.48544664]
[1730760595001,42.90095395,2401.2,2401.1,1.48544664]
[1730760595403,41.4004,2401.2,2401.1,1.90218664]
[1730760595798,3.2078,2401.3,2401.1,1.48544664]
[1730760596005,1.08108,2401.5,2401.3,0.4167]
[1730760596208,1.71018,2401.5,2401.4,0.57110312]
[1730760596407,42.51018,2401.5,2401.4,0.57110312]
[1730760596804,45.71798,2401.5,2401.4,0.57110312]
[1730760597312,46.37088,2401.5,2401.4,0.57110312]
[1730760597802,46.37088,2401.5,2401.4,0.41669]
[1730760597999,46.37088,2401.5,2401.4,0.57489021]
[1730760598203,45.9542,2401.5,2401.4,0.57489021]
[1730760598400,46.37087,2401.5,2401.4,0.57489021]
[1730760598610,46.37087,2401.5,2401.4,0.99158021]
[1730760598812,46.37087,2401.5,2401.4,0.41669]
[1730760599014,46.37087,2401.5,2401.4,0.99165137]
[1730760600606,46.37087,2401.5,2401.4,0.57496137]
[1730760600911,46.37087,2401.5,2401.4,0.99165137]
[1730760601408,46.37087,2401.5,2401.4,0.991696]
[1730760601607,45.07737,2401.5,2401.4,0.991696]
[1730760602712,44.6607,2401.5,2401.4,0.991696]
[1730760603011,45.07737,2401.5,2401.4,0.991696]
[1730760603213,45.07737,2401.5,2401.4,0.575006]
[1730760604915,45.07737,2401.5,2401.3,0.4167]
[1730760605115,45.07737,2401.5,2401.4,0.57481788]
[1730760607519,45.07737,2401.5,2401.4,0.57508454]
[1730760608221,45.07737,2401.5,2401.4,1.49513882]
[1730760608424,45.07737,2401.5,2401.4,1.91182882]
[1730760608425,44.6607,2401.5,2401.4,1.91182882]
[1730760609126,44.6607,2401.5,2401.4,1.90608712]
[1730760611827,44.6607,2401.5,2401.4,1.90126232]
[1730760612928,41.4529,2401.5,2401.4,1.90126232]
[1730760613331,44.6607,2401.5,2401.4,1.90126232]
[1730760615430,44.6607,2401.5,2401.4,1.89950323]
[1730760615634,44.6607,2401.5,2401.4,2.46979025]
[1730760618523,44.6607,2401.5,2401.4,0.98700278]
[1730760618729,44.6607,2401.5,2401.4,2.46136253]
[1730760620237,3.2078,2401.5,2401.4,2.46136253]
[1730760621832,3.2078,2401.5,2401.4,0.98700278]
[1730760622032,3.2078,2401.5,2401.4,2.47183726]
[1730760622936,0.41666,2401.6,2401.4,2.47183726]
[1730760623136,0.41666,2401.6,2401.5,1.48483448]
[1730760623526,45.82764,2401.7,2401.5,1.90149448]
[1730760623733,45.82764,2401.7,2401.6,0.57109018]
[1730760624141,45.82764,2401.7,2401.6,0.98775018]
[1730760624333,45.411,2401.7,2401.6,0.98775018]
[1730760624826,4.611,2401.7,2401.6,0.98775018]
[1730760625230,4.611,2401.7,2401.6,0.41666]
[1730760625425,45.411,2401.7,2401.6,0.9874547]
[1730760627831,42.2032,2401.7,2401.6,1.89997563]
[1730760628032,0.41661,2401.9,2401.6,5.64731563]
[1730760628240,0.41661,2401.9,2401.8,0.41662]
[1730760628435,0.41661,2401.9,2401.8,0.9874147]
[1730760628633,41.21661,2401.9,2401.8,0.9874147]
[1730760628835,41.21661,2401.9,2401.8,0.98720727]
[1730760630041,40.8,2401.9,2401.8,0.98720727]
[1730760630239,1.5128,2402.0,2401.9,0.4166]
[1730760630743,42.3128,2402.0,2401.9,0.98657904]
[1730760631735,46.476,2402.0,2401.9,0.98657904]
[1730760631939,46.8926,2402.0,2401.8,0.41661]
[1730760632137,42.7294,2402.0,2401.8,0.41661]
[1730760632837,42.7294,2402.0,2401.8,0.41662]
[1730760633543,42.3128,2402.0,2401.8,0.41662]
[1730760633742,0.4166,2401.9,2401.8,0.41662]
[1730760633935,0.4166,2401.9,2401.8,0.98963589]
[1730760634136,42.3128,2402.0,2401.8,0.41662]
[1730760634337,42.7294,2402.0,2401.8,0.41662]
[1730760635038,42.7294,2402.0,2401.9,0.4166]
[1730760635838,42.7294,2402.0,2401.9,0.98925329]
[1730760636141,42.7294,2402.0,2401.9,0.98929579]
[1730760636440,0.4166,2401.9,2401.8,0.41661]
[1730760636743,0.4166,2401.9,2401.8,0.98923353]
[1730760637134,42.3128,2402.0,2401.8,0.98923353]
[1730760637439,42.7294,2402.0,2401.8,0.41661]
[1730760637746,0.41661,2401.9,2401.7,1.91718395]
[1730760637944,0.41662,2401.9,2401.8,0.57568194]
[1730760638443,0.41662,2401.9,2401.7,1.91718395]
[1730760638638,0.41662,2401.9,2401.8,0.57577669]
[1730760638839,0.41662,2401.9,2401.8,0.99239669]
[1730760639234,42.3128,2402.0,2401.8,2.07633064]
[1730760639547,42.72939,2402.0,2401.9,0.4166]
[1730760639738,42.72939,2402.0,2401.9,0.992759]
[1730760639939,42.72939,2402.0,2401.9,0.576159]
[1730760643348,42.72939,2402.0,2401.9,0.57928431]
[1730760643749,1.92939,2402.0,2401.9,0.57928431]
[1730760645041,1.5128,2402.0,2401.9,0.57928431]
[1730760645244,1.5128,2402.0,2401.9,0.99588431]
[1730760645443,1.92939,2402.0,2401.9,0.99588431]
[1730760645851,1.5128,2402.0,2401.9,0.99588431]
[1730760646645,1.5128,2402.0,2401.9,1.78238431]
[1730760646947,1.5128,2402.0,2401.9,1.2031]
[1730760647142,1.5128,2402.0,2401.9,1.78208969]
[1730760649053,1.5128,2402.0,2401.9,0.99558969]
[1730760650446,1.5128,2402.0,2401.9,0.4166]
[1730760650447,0.7264,2402.0,2401.9,0.4166]
[1730760650653,0.7264,2402.0,2401.9,0.99560442]
[1730760653455,0.77,2402.1,2401.9,0.57900442]
[1730760653658,0.77,2402.1,2402.0,0.99559442]
[1730760654062,0.77,2402.1,2402.0,2.49614837]
[1730760654351,0.77,2402.1,2402.0,2.49626773]
[1730760654744,0.7299,2402.2,2402.1,0.41657]
[1730760654948,0.7299,2402.2,2402.1,0.99567785]
[1730760655257,0.7299,2402.2,2402.1,1.73397785]
[1730760657253,0.7299,2402.2,2402.1,2.46927785]
[1730760657756,0.7769,2402.3,2402.2,0.41655]
[1730760658157,4.9393,2402.3,2402.2,1.20015]
[1730760658858,4.9393,2402.3,2402.2,2.70070395]
[1730760659044,4.9393,2402.3,2402.2,3.27995084]
[1730760659244,0.7769,2402.3,2402.2,2.70070395]
[1730760659449,0.7769,2402.3,2402.2,3.28323066]
[1730760659650,4.9393,2402.3,2402.2,3.28323066]
[1730760660248,0.7181,2402.4,2402.3,0.41653]
[1730760660452,1.13462,2402.4,2402.3,2.49961066]
[1730760661156,0.7181,2402.4,2402.3,2.49912878]
[1730760662058,3.2078,2402.5,2402.4,0.41652]
[1730760662759,3.6243,2402.5,2402.4,0.99971085]
[1730760663264,3.2078,2402.5,2402.4,0.99971085]
[1730760664361,3.2078,2402.5,2402.4,0.99963258]
[1730760667862,3.2078,2402.5,2402.4,0.99915559]
[1730760668364,3.2078,2402.5,2402.4,0.99920554]
[1730760670861,3.6243,2402.5,2402.4,0.58268554]
[1730760671067,3.6243,2402.5,2402.4,0.99920554]
[1730760671361,3.2078,2402.5,2402.4,0.41652]
[1730760671567,3.2078,2402.5,2402.4,0.99969366]
[1730760675167,3.2078,2402.5,2402.4,1.00011233]
[1730760678185,40.8,2402.7,2402.4,0.58359233]
[1730760678483,41.21647,2402.7,2402.5,1.91704395]
[1730760679085,40.8,2402.7,2402.5,1.91704395]
[1730760679285,0.41648,2402.6,2402.5,1.91704395]
[1730760679480,0.41648,2402.6,2402.5,2.50021721]
[1730760679681,0.41648,2402.6,2402.5,1.91704395]
[1730760680788,0.41648,2402.6,2402.5,2.50024074]
[1730760682609,41.21647,2402.7,2402.6,0.41648]
[1730760683000,41.21647,2402.7,2402.6,1.15138]
[1730760684907,41.21647,2402.7,2402.6,2.65193395]
[1730760685694,40.8,2402.7,2402.6,2.65193395]
[1730760686292,40.8,2402.7,2402.6,3.23543465]
[1730760686489,40.8,2402.7,2402.6,2.65193395]
[1730760687486,40.8,2402.7,2402.6,3.23558597]
[1730760690001,40.8,2402.7,2402.6,3.23530461]
[1730760690184,40.8,2402.7,2402.6,2.65193395]
[1730760690385,40.8,2402.7,2402.6,3.23533515]
[1730760690589,41.21646,2402.7,2402.6,3.23533515]
[1730760691596,40.8,2402.7,2402.6,3.23533515]
[1730760691898,41.21646,2402.7,2402.6,3.23533515]
[1730760692085,40.8,2402.7,2402.6,3.23533515]
[1730760692486,41.21646,2402.7,2402.6,3.23533515]
[1730760693292,40.8,2402.7,2402.6,3.23533515]
[1730760693696,41.21646,2402.7,2402.6,3.23533515]
[1730760695189,40.8,2402.7,2402.6,3.23533515]
[1730760696386,41.21646,2402.7,2402.6,3.23533515]
[1730760697489,41.21646,2402.7,2402.6,2.65193395]
[1730760697695,40.8,2402.7,2402.6,3.23261225]
[1730760697894,40.8,2402.7,2402.6,4.16161771]
[1730760698701,40.8,2402.7,2402.6,4.16160046]
[1730760701202,40.8,2402.7,2402.6,2.65193395]
[1730760701507,40.8,2402.7,2402.6,4.16998461]
[1730760702390,1.90865,2402.8,2402.7,0.41646]
[1730760702592,1.90865,2402.8,2402.7,1.93451066]
[1730760702997,42.70865,2402.8,2402.7,1.93451066]
[1730760705303,42.70865,2402.8,2402.7,0.41646]
[1730760705499,40.8,2402.8,2402.7,2.71275266]
[1730760705891,41.21645,2402.8,2402.7,2.71275266]
[1730760708199,40.8,2402.8,2402.7,2.71275266]
[1730760712911,40.8,2402.8,2402.7,1.20226]
[1730760713215,40.8,2402.8,2402.7,2.70578884]
[1730760713414,40.8,2402.8,2402.7,3.86312275]
[1730760713614,40.8,2402.8,2402.7,3.86321638]
[1730760714011,40.8,2402.8,2402.7,2.7062025]
[1730760715318,1.5747,2402.9,2402.7,2.2897425]
[1730760715509,1.5747,2402.9,2402.8,1.9203925]
[1730760715821,42.3747,2402.9,2402.8,1.9203925]
[1730760716517,42.3747,2402.9,2402.8,3.42094645]
[1730760716721,42.3747,2402.9,2402.8,3.42848106]
[1730760720410,42.3747,2402.9,2402.8,1.91700395]
[1730760720921,42.3747,2402.9,2402.8,3.42603468]
[1730760721122,42.3747,2402.9,2402.8,3.41706119]
[1730760721317,1.5747,2402.9,2402.8,3.41706119]
[1730760723012,41.56907728,2403.0,2402.8,3.00061119]
[1730760723329,41.56907728,2403.0,2402.9,0.41643]
[1730760723513,41.56907728,2403.0,2402.9,0.99340776]
[1730760723718,41.56907728,2403.0,2402.9,0.99334579]
[1730760724323,41.56907728,2403.0,2402.9,1.91655794]
[1730760725223,41.56907728,2403.0,2402.9,3.41711189]
[1730760726218,0.76907728,2403.0,2402.9,3.41711189]
[1730760726917,0.76907728,2403.0,2402.9,1.91698395]
[1730760727113,0.76907728,2403.0,2402.9,3.41227097]
[1730760730020,0.00507728,2403.0,2402.9,3.41227097]
[1730760730727,0.00507728,2403.0,2402.9,1.91698395]
[1730760730921,0.00507728,2403.0,2402.9,3.4213645]
[1730760734232,0.00507728,2403.0,2402.9,1.91698395]
[1730760734421,0.00507728,2403.0,2402.9,3.4208709]
[1730760734822,0.00507728,2403.0,2402.9,1.91698395]
[1730760735023,0.00507728,2403.0,2402.9,3.42108599]
[1730760737227,0.00507728,2403.0,2402.9,3.42954849]
[1730760738233,0.00507728,2403.0,2402.9,1.91698395]
[1730760738535,0.00507728,2403.0,2402.9,3.42980298]
[1730760739937,0.00507728,2403.0,2402.9,4.59354777]
[1730760741040,0.80777728,2403.0,2402.9,4.59354777]
[1730760741444,0.00507728,2403.0,2402.9,4.59354777]
[1730760741744,0.00507728,2403.0,2402.9,2.48668395]
[1730760741940,0.00507728,2403.0,2402.9,5.16234497]
[1730760743741,7.27636277,2403.0,2402.9,1.51233014]
[1730760743942,7.27636277,2403.0,2402.9,0.58166544]
[1730760744242,7.27636277,2403.0,2402.7,1.50055395]
[1730760744243,0.41645,2402.8,2402.7,1.50055395]
[1730760744431,0.41645,2402.8,2402.7,2.42053305]
[1730760744632,0.41645,2402.8,2402.7,2.4205522]
[1730760745436,0.41645,2402.8,2402.7,1.50055395]
[1730760745640,0.41645,2402.8,2402.7,2.40782941]
[1730760745841,0.41645,2402.8,2402.7,2.40783431]
[1730760747345,0.92855,2402.8,2402.7,2.40783431]
[1730760749146,0.92855,2402.8,2402.7,2.41265754]
[1730760749336,0.92855,2402.8,2402.7,1.50055395]
[1730760749547,0.92855,2402.8,2402.7,2.41269455]
[1730760749932,0.92855,2402.8,2402.7,1.50055395]
[1730760750739,0.92855,2402.8,2402.7,2.40812897]
[1730760750938,0.92855,2402.8,2402.7,1.50055395]
[1730760756445,0.92855,2402.8,2402.7,2.06826924]
[1730760758651,0.41645,2402.8,2402.7,2.06826924]
[1730760759949,41.21645,2402.8,2402.7,1.50055395]
[1730760760155,41.21645,2402.8,2402.7,2.48464861]
[1730760761247,0.41645,2402.8,2402.7,2.48464861]
[1730760763455,0.41645,2402.8,2402.7,1.91701395]
[1730760763754,0.41645,2402.8,2402.7,2.48485736]
[1730760768350,0.41645,2402.8,2402.7,1.91701395]
[1730760768953,0.41645,2402.8,2402.7,2.48470759]
[1730760769849,0.41645,2402.8,2402.7,1.91701395]
[1730760770755,0.41645,2402.8,2402.7,2.48476162]
[1730760774068,0.41643,2402.9,2402.8,0.41644]
[1730760774256,0.41643,2402.9,2402.8,1.51054]
[1730760775167,0.41643,2402.9,2402.8,2.01924]
[1730760775366,0.41643,2402.9,2402.8,1.6028]
[1730760775867,0.41643,2402.9,2402.8,2.17150976]
[1730760776564,3.62423,2402.9,2402.8,2.17150976]
[1730760776961,3.2078,2402.9,2402.8,2.58795976]
[1730760777165,3.2078,2402.9,2402.8,3.49787751]
[1730760778879,3.2078,2402.9,2402.8,3.49793661]
[1730760781068,44.94719728,2403.0,2402.9,0.41643]
[1730760781271,44.94719728,2403.0,2402.9,0.98510353]
[1730760784675,47.64047277,2403.0,2402.9,0.98548693]
[1730760784880,47.12257277,2403.0,2402.9,0.98548693]
[1730760785170,47.12257277,2403.0,2402.9,0.98579003]
[1730760785371,2.69835277,2403.0,2402.9,0.98579003]
[1730760785563,2.69835277,2403.0,2402.9,1.89658238]
[1730760785564,3.21287728,2403.0,2402.9,1.89658238]
[1730760786167,3.21287728,2403.0,2402.9,0.98579003]
[1730760786368,3.21287728,2403.0,2402.9,1.89634706]
[1730760789976,0.00507728,2403.0,2402.9,1.89634706]
[1730760790177,3.21287728,2403.0,2402.9,1.89634706]
[1730760792476,0.00507728,2403.0,2402.9,1.89634706]
[1730760793176,0.00507728,2403.0,2402.9,3.39690101]
[1730760793477,0.00507728,2403.0,2402.9,4.46731526]
[1730760793873,0.00507728,2403.0,2402.9,2.96676131]
[1730760794266,0.00507728,2403.0,2402.9,1.89634706]
[1730760795369,0.00507728,2403.0,2402.9,0.41643]
[1730760795566,0.00507728,2403.0,2402.9,1.89495284]
[1730760797468,0.00507728,2403.0,2402.9,6.05655284]
[1730760797978,0.00507728,2403.0,2402.9,2.96536709]
[1730760800480,0.00507728,2403.0,2402.9,1.89495284]
[1730760800978,0.00507728,2403.0,2402.9,4.46592104]
[1730760801879,0.00507728,2403.0,2402.9,3.39550679]
[1730760802774,0.00507728,2403.0,2402.9,1.89495284]
[1730760803677,0.00507728,2403.0,2402.9,8.37796709]
[1730760803876,40.8,2403.3,2403.2,0.41638]
[1730760804185,40.8,2403.3,2403.2,1.89271259]
[1730760804382,40.8,2403.3,2403.2,0.98504263]
[1730760804584,1.0133,2403.5,2403.4,0.41634]
[1730760804786,1.0133,2403.5,2403.4,0.98500263]
[1730760805086,41.8133,2403.5,2403.4,0.98500263]
[1730760805276,42.22963,2403.5,2403.4,0.41634]
[1730760805979,42.22963,2403.5,2403.4,0.98682726]
[1730760806181,42.22963,2403.5,2403.4,0.41634]
[1730760806478,42.22963,2403.5,2403.4,0.98682439]
[1730760806780,42.22963,2403.5,2403.4,0.41634]
[1730760809077,0.41634,2403.4,2403.2,1.44706]
[1730760809287,0.41634,2403.4,2403.3,0.57013945]
[1730760809882,0.41634,2403.4,2403.3,0.57010634]
[1730760814289,1.0133,2403.5,2403.4,0.41634]
[1730760814485,1.0133,2403.5,2403.4,0.57010634]
[1730760814486,1.42963,2403.5,2403.4,0.57010634]
[1730760814796,42.22963,2403.5,2403.4,0.57010634]
[1730760816782,42.22963,2403.5,2403.4,0.57385339]
[1730760818493,42.22963,2403.5,2403.4,0.99019339]
[1730760818694,42.22963,2403.5,2403.4,0.57385339]
[1730760819096,0.4163,2403.7,2403.5,0.41633]
[1730760819395,3.2078,2403.9,2403.6,0.5075]
[1730760819396,6.31734549,2403.9,2403.6,0.5075]
[1730760819594,6.31734549,2403.9,2403.8,0.41627]
[1730760819595,3.62407,2403.9,2403.8,0.41627]
[1730760819800,3.62406,2403.9,2403.8,0.41627]
[1730760820000,3.62406,2403.9,2403.7,0.41628]
[1730760820001,0.41628,2403.8,2403.7,0.41628]
[1730760820194,5.10488,2403.8,2403.7,0.99370886]
[1730760820399,5.10488,2403.8,2403.7,0.57744869]
[1730760820594,5.10488,2403.8,2403.6,0.92379]
[1730760820801,0.94959,2403.7,2403.6,0.92379]
[1730760820996,0.94959,2403.7,2403.6,1.50120727]
[1730760821194,0.94959,2403.7,2403.6,1.08491727]
[1730760821698,0.94959,2403.7,2403.6,1.50122727]
[1730760823198,0.5333,2403.7,2403.6,1.50122727]
[1730760823394,0.94959,2403.7,2403.6,1.50122727]
[1730760824002,0.94959,2403.7,2403.6,1.5010183]
[1730760824596,0.41629,2403.7,2403.6,1.5010183]
[1730760826300,0.41629,2403.7,2403.6,0.92381]
[1730760827502,0.94488,2403.8,2403.7,0.41629]
[1730760827809,4.16336,2403.9,2403.8,0.41627]
[1730760828108,3.2078,2403.9,2403.8,0.41627]
[1730760828604,3.7265,2403.9,2403.8,0.41627]
[1730760828805,3.2078,2403.9,2403.8,0.41627]
[1730760830408,3.2078,2403.9,2403.8,0.99273619]
[1730760830799,47.46955278,2404.0,2403.8,0.57646619]
[1730760831001,47.46955278,2404.0,2403.9,0.41626]
[1730760831197,50.67735278,2404.0,2403.9,0.41626]
[1730760833014,50.67735278,2404.0,2403.8,0.41626]
[1730760833403,50.67735278,2404.0,2403.9,0.5311]
[1730760836116,45.92460395,2404.0,2403.9,0.5311]
[1730760836514,44.42405,2404.0,2403.9,0.94736]
[1730760837812,44.0078,2404.0,2403.9,0.94736]
[1730760838219,3.2078,2404.0,2403.9,0.94736]
[1730760840906,3.2078,2404.0,2403.9,1.52370901]
[1730760841306,3.2078,2404.0,2403.9,2.03150901]
[1730760843910,3.2078,2404.0,2403.9,6.19150901]
[1730760844420,3.624,2404.3,2403.9,5.77524901]
[1730760844609,3.624,2404.3,2404.2,0.4162]
[1730760845220,3.2078,2404.3,2404.2,0.9201]
[1730760845717,40.8,2404.4,2404.2,0.5039]
[1730760846018,40.8,2404.4,2404.3,0.92509]
[1730760846622,0.41615,2404.5,2404.4,0.41615]
[1730760847025,41.21615,2404.5,2404.4,0.41615]
[1730760847525,40.8,2404.5,2404.4,0.41615]
[1730760848416,41.21615,2404.5,2404.4,0.41615]
[1730760848817,41.21615,2404.5,2404.4,0.92975]
[1730760849916,41.21615,2404.5,2404.2,1.6542]
[1730760849917,0.41619,2404.3,2404.2,1.6542]
[1730760850111,0.41618,2404.4,2404.2,1.6542]
[1730760850312,0.41619,2404.3,2404.2,1.6542]
[1730760851916,42.82285395,2404.5,2404.2,1.238]
[1730760851917,42.30055395,2404.5,2404.2,1.238]
[1730760852223,40.8,2404.5,2404.4,0.41617]
[1730760852627,41.21615,2404.5,2404.4,0.41617]
[1730760852821,41.2853,2404.5,2404.4,0.41617]